bitfinex-derivatives/quotes_SOLF0:USTF0_20250109
["timestamp","ask_amount","ask_price","bid_price","bid_amount"]
[1736452830282,32.47738692,186.45,186.31,1.5563]
[1736452830488,32.47738692,186.42,186.24,32.47738692]
[1736452830684,32.47738692,186.39,186.25,1.5904]
[1736452830988,32.47738692,186.33,186.15,32.47738692]
[1736452831189,2.6847,186.29,186.2,2.6859]
[1736452831382,32.47738692,186.33,186.2,2.6859]
[1736452831587,32.47738692,186.33,186.18,32.47738692]
[1736452831789,2.6841,186.33,186.21,32.47738692]
[1736452831988,32.47738692,186.42,186.24,32.47738692]
[1736452832187,32.47738692,186.42,186.25,4.2049255]
[1736452832992,32.47738692,186.42,186.26,1.5788]
[1736452833386,2.6836,186.37,186.29,2.6846]
[1736452833587,32.47738692,186.39,186.25,4.2049255]
[1736452833891,2.6849,186.27,186.21,2.6858]
[1736452834191,32.47738692,186.24,186.13,3.0628]
[1736452834382,2.686,186.2,186.13,5.7496]
[1736452834583,32.47738692,186.24,186.13,3.0628]
[1736452834784,32.47738692,186.24,186.08,34.03918692]
[1736452834984,32.47738692,186.21,186.08,1.5618]
[1736452835389,32.47738692,186.15,186.04,3.0696]
[1736452835887,32.47738692,186.15,185.99,32.47738692]
[1736452836288,32.47738692,186.21,186.02,32.47738692]
[1736452836491,32.47738692,186.21,186.05,32.47738692]
[1736452837082,2.6862,186.19,186.09,2.6875]
[1736452837282,83.74,186.26,186.11,32.47738692]
[1736452837783,32.47738692,186.15,185.97,32.47738692]
[1736452837987,32.47738692,186.15,185.98,1.6093]
[1736452838491,2.6877,186.08,185.98,1.6093]
[1736452838686,32.47738692,186.21,185.96,3.0696]
[1736452838890,32.47738692,186.15,186.0,32.47738692]
[1736452839088,118.52975188,186.21,186.03,32.47738692]
[1736452839288,118.52975188,186.21,185.96,3.0696]
[1736452839289,32.47738692,186.13,185.96,3.0696]
[1736452839484,32.47738692,186.1,185.96,3.0696]
[1736452840090,2.6878,186.07,186.0,2.6888]
[1736452840291,32.47738692,186.1,185.96,3.0696]
[1736452840595,32.47738692,186.07,185.96,3.0696]
[1736452840792,2.6885,186.02,185.93,2.6897]
[1736452840994,2.6885,186.02,185.91,32.47738692]
[1736452841190,32.47738692,186.04,185.87,3.066]
[1736452841389,32.47738692,185.99,185.89,2.6903]
[1736452841694,32.47738692,185.99,185.87,3.066]
[1736452841884,2.6893,185.97,185.9,2.6902]
[1736452842194,2.6893,185.97,185.76,32.47738692]
[1736452842195,32.47738692,185.96,185.73,95.21035206]
[1736452842395,32.47738692,185.93,185.77,35.59088692]
[1736452842690,32.47738692,185.96,185.8,32.47738692]
[1736452842891,2.6899,185.93,185.84,2.691]
[1736452843094,32.47738692,185.96,185.78,32.47738692]
[1736452843293,32.47738692,185.96,185.81,32.47738692]
[1736452843595,32.47738692,185.99,185.81,32.47738692]
[1736452843893,2.6893,185.97,185.86,2.6908]
[1736452844194,32.47738692,185.99,185.81,32.47738692]
[1736452844390,32.47738692,185.93,185.77,1.5318]
[1736452844990,32.47738692,186.03,185.78,2.6918]
[1736452844991,2.6908,185.86,185.78,2.6918]
[1736452845291,32.47738692,185.9,185.77,1.5318]
[1736452845587,32.47738692,185.94,185.83,2.6912]
[1736452845588,2.6905,185.89,185.83,2.6912]
[1736452845787,2.6905,185.89,185.77,1.5318]
[1736452845992,32.47738692,185.94,185.77,1.5318]
[1736452846187,32.47738692,185.87,185.74,1.5535]
[1736452846395,32.47738692,185.84,185.74,1.5535]
[1736452846587,2.692,185.78,185.71,2.693]
[1736452846792,32.47738692,185.81,185.69,0.26037]
[1736452847588,32.47738692,185.88,185.69,0.26037]
[1736452847793,32.47738692,185.88,185.73,32.47738692]
[1736452848093,2.6914,185.82,185.76,2.6922]
[1736452848292,32.47738692,185.88,185.7,32.47738692]
[1736452848493,32.47738692,185.88,185.71,1.5819]
[1736452848793,32.47738692,185.88,185.73,32.47738692]
[1736452849500,32.47738692,185.88,185.78,2.6919]
[1736452850186,2.6911,185.84,185.73,32.47738692]
[1736452850586,32.47738692,185.88,185.73,32.47738692]
[1736452850788,32.47738692,185.85,185.71,1.5819]
[1736452850994,32.47738692,185.82,185.71,1.5819]
[1736452851187,2.6921,185.77,185.69,0.26037]
[1736452851594,32.47738692,185.82,185.69,0.26037]
[1736452851788,32.47738692,185.85,185.69,0.26037]
[1736452851999,32.47738692,185.85,185.73,2.6926]
[1736452852194,2.6916,185.81,185.69,0.26037]
[1736452852395,32.47738692,185.85,185.69,0.26037]
[1736452852599,32.47738692,185.81,185.69,0.26037]
[1736452853402,32.47738692,185.81,185.73,2.6927]
[1736452853596,2.6918,185.79,185.73,2.6927]
[1736452853893,32.47738692,185.81,185.69,0.26037]
[1736452854601,32.47738692,185.85,185.69,0.26037]
[1736452854899,32.47738692,185.82,185.69,0.26037]
[1736452855293,2.6918,185.79,185.73,2.6926]
[1736452855903,32.47738692,185.79,185.7,2.6931]
[1736452856200,32.47738692,185.82,185.69,0.26037]
[1736452856596,2.6919,185.79,185.74,2.6925]
[1736452856900,32.47738692,185.79,185.69,0.26037]
[1736452857100,2.692,185.78,185.72,2.6928]
[1736452857300,32.47738692,185.79,185.69,0.26037]
[1736452858103,32.47738692,185.82,185.69,0.26037]
[1736452858500,2.6916,185.81,185.72,2.6927]
[1736452858700,32.47738692,185.82,185.69,0.26037]
[1736452859106,2.6918,185.79,185.73,2.6926]
[1736452859307,32.47738692,185.82,185.69,0.26037]
[1736452859504,32.47738692,185.79,185.69,0.26037]
[1736452860009,32.47738692,185.82,185.69,0.26037]
[1736452860209,32.47738692,185.85,185.68,1.6449]
[1736452860417,32.47738692,185.88,185.7,32.47738692]
[1736452860616,32.47738692,185.85,185.71,3.0843]
[1736452860809,32.47738692,185.82,185.71,3.0843]
[1736452861414,32.47738692,185.88,185.71,3.0843]
[1736452861610,32.47738692,185.88,185.73,32.47738692]
[1736452862114,32.47738692,185.91,185.73,32.47738692]
[1736452862314,2.6902,185.9,185.85,2.6909]
[1736452862518,32.47738692,185.91,185.73,32.47738692]
[1736452862713,32.47738692,185.94,185.79,32.47738692]
[1736452863012,32.47738692,185.97,185.8,3.1984]
[1736452863222,84.0,185.98,185.82,32.47738692]
[1736452863410,32.47738692,186.0,185.94,2.6896]
[1736452863710,32.47738692,186.06,185.88,32.47738692]
[1736452863909,32.47738692,186.06,185.99,2.6888]
[1736452864105,32.47738692,186.03,185.88,32.47738692]
[1736452864314,2.6891,185.98,185.91,2.69]
[1736452864607,32.47738692,185.97,185.83,1.6147]
[1736452865508,32.47738692,186.0,185.83,1.6147]
[1736452865715,32.47738692,185.97,185.83,1.6147]
[1736452865912,32.47738692,185.94,185.83,1.6147]
[1736452866416,32.47738692,185.97,185.83,1.6147]
[1736452866717,2.6891,185.99,185.83,1.6147]
[1736452866911,32.47738692,186.0,185.85,32.47738692]
[1736452867312,32.47738692,185.97,185.83,1.6147]
[1736452867711,2.6894,185.96,185.89,2.6903]
[1736452867912,32.47738692,186.0,185.83,1.6147]
[1736452868615,32.47738692,185.94,185.8,3.1984]
[1736452868809,32.47738692,185.91,185.8,3.1984]
[1736452869014,32.47738692,185.94,185.8,3.1984]
[1736452869213,32.47738692,186.03,185.8,3.1984]
[1736452869214,32.47738692,185.97,185.82,32.47738692]
[1736452869511,32.47738692,186.0,185.82,32.47738692]
[1736452869708,32.47738692,186.03,185.88,32.47738692]
[1736452869912,117.09451362,186.06,185.91,32.47738692]
[1736452870217,117.09451362,186.06,185.99,2.6889]
[1736452870415,84.6171267,186.06,185.94,32.47738692]
[1736452870719,84.6171267,186.12,185.97,32.47738692]
[1736452871418,84.6171267,186.12,185.94,32.47738692]
[1736452871419,84.6171267,186.12,186.0,32.47738692]
[1736452871716,32.47738692,186.15,186.01,1.5076]
[1736452872310,117.09451362,186.21,186.01,1.5076]
[1736452872311,32.47738692,186.21,186.06,32.47738692]
[1736452872514,84.6171267,186.22,186.06,32.47738692]
[1736452872707,84.6171267,186.22,186.09,32.47738692]
[1736452873207,32.47738692,186.21,186.07,3.1432]
[1736452873411,84.6171267,186.22,186.09,32.47738692]
[1736452873618,84.6171267,186.22,186.07,3.1432]
[1736452873820,32.47738692,186.21,186.07,3.1432]
[1736452874014,2.6864,186.17,186.07,2.6878]
[1736452874218,32.47738692,186.18,186.03,32.47738692]
[1736452874413,32.47738692,186.21,186.03,32.47738692]
[1736452874614,2.687,186.13,186.06,2.6878]
[1736452874911,32.47738692,186.12,185.95,3.1342]
[1736452875113,2.6878,186.07,185.95,3.1342]
[1736452875316,32.47738692,186.09,185.95,3.1342]
[1736452876920,32.47738692,186.12,185.95,3.1342]
[1736452877318,2.6872,186.12,186.05,2.6881]
[1736452877520,32.47738692,186.18,186.0,32.47738692]
[1736452877712,32.47738692,186.21,186.03,32.47738692]
[1736452877921,2.6866,186.15,186.09,2.6874]
[1736452878229,32.47738692,186.24,186.06,32.47738692]
[1736452878522,2.6857,186.22,186.09,32.47738692]
[1736452878722,32.47738692,186.24,186.09,32.47738692]
[1736452878923,2.6859,186.2,186.14,2.6867]
[1736452879225,32.47738692,186.24,186.09,32.47738692]
[1736452879422,2.6861,186.19,186.12,2.687]
[1736452879720,32.47738692,186.18,186.04,1.5024]
[1736452879923,366.67421572,186.38,186.09,32.47738692]
[1736452880221,32.47738692,186.27,186.09,32.47738692]
[1736452880424,32.47738692,186.24,186.09,32.47738692]
[1736452881424,32.47738692,186.21,186.06,32.47738692]
[1736452881624,32.47738692,186.3,186.04,1.5024]
[1736452881625,32.47738692,186.18,186.04,1.5024]
[1736452881827,2.6864,186.17,186.12,2.6871]
[1736452882125,32.47738692,186.18,186.04,1.5024]
[1736452882523,32.47738692,186.24,186.06,32.47738692]
[1736452882927,32.47738692,186.24,186.09,32.47738692]
[1736452883125,32.47738692,186.21,186.04,1.5024]
[1736452883928,32.47738692,186.18,186.03,32.47738692]
[1736452884124,32.47738692,186.18,186.0,32.47738692]
[1736452884426,32.47738692,186.15,186.0,32.47738692]
[1736452884623,2.6872,186.12,186.06,2.6878]
[1736452885024,32.47738692,186.18,186.03,32.47738692]
[1736452885424,32.47738692,186.24,186.06,32.47738692]
[1736452885620,32.47738692,186.24,186.09,32.47738692]
[1736452885927,32.47738692,186.24,186.11,2.6871]
[1736452886126,32.47738692,186.21,186.11,2.6871]
[1736452886334,32.47738692,186.21,186.06,32.47738692]
[1736452886528,32.47738692,186.21,186.1,2.6873]
[1736452886729,32.47738692,186.18,186.0,32.47738692]
[1736452886928,2.6873,186.11,186.0,32.47738692]
[1736452887129,32.47738692,186.15,186.0,32.47738692]
[1736452887330,2.6871,186.12,186.0,32.47738692]
[1736452887534,2.6871,186.12,186.05,2.688]
[1736452887734,32.47738692,186.15,186.0,32.47738692]
[1736452888035,32.47738692,186.15,186.05,2.688]
[1736452888235,32.47738692,186.12,185.96,1.6106]
[1736452888434,2.6879,186.07,185.96,1.6106]
[1736452888635,32.47738692,186.12,186.0,2.6887]
[1736452888933,2.688,186.06,185.95,3.1342]
[1736452889133,32.47738692,186.09,185.95,3.1342]
[1736452889529,48.57738692,186.21,185.91,32.47738692]
[1736452889530,32.47738692,186.06,185.91,32.47738692]
[1736452889730,32.47738692,186.03,185.89,1.4994]
[1736452890029,32.47738692,186.0,185.87,3.1727]
[1736452890238,32.47738692,185.97,185.87,3.1727]
[1736452890633,2.6895,185.95,185.88,2.6904]
[1736452890830,32.47738692,185.97,185.81,32.47738692]
[1736452891627,2.6898,185.93,185.86,2.6908]
[1736452891831,32.47738692,185.97,185.81,32.47738692]
[1736452892336,11.56,186.08,185.79,0.21768]
[1736452892337,32.47738692,186.06,185.87,32.47738692]
[1736452892539,32.47738692,186.06,185.9,32.47738692]
[1736452893232,2.6886,186.02,185.9,32.47738692]
[1736452893436,32.47738692,186.06,185.9,32.47738692]
[1736452893738,2.6884,186.03,185.97,2.6892]
[1736452894134,32.47738692,186.06,185.9,32.47738692]
[1736452894336,2.6885,186.02,185.9,32.47738692]
[1736452894533,32.47738692,186.03,185.89,3.0426]
[1736452894928,32.47738692,186.06,185.91,32.47738692]
[1736452895333,32.47738692,186.06,185.89,3.0426]
[1736452895536,2.6888,186.01,185.89,3.0426]
[1736452895736,32.47738692,186.06,185.89,3.0426]
[1736452895938,2.6887,186.01,185.93,2.6897]
[1736452896133,32.47738692,186.06,185.89,3.0426]
[1736452896335,32.47738692,186.06,185.91,32.47738692]
[1736452896536,32.47738692,186.09,185.94,32.47738692]
[1736452896731,32.47738692,186.09,185.91,32.47738692]
[1736452897137,32.47738692,186.06,185.91,32.47738692]
[1736452897636,83.86,186.13,185.98,2.6889]
[1736452897637,2.6883,186.04,185.98,2.6889]
[1736452897841,32.47738692,186.12,185.94,32.47738692]
[1736452898045,32.47738692,186.12,185.97,32.47738692]
[1736452898046,2.6875,186.09,185.97,32.47738692]
[1736452898241,83.86,186.13,185.97,32.47738692]
[1736452898542,83.86,186.13,186.0,32.47738692]
[1736452898745,83.86,186.13,185.97,32.47738692]
[1736452899336,32.47738692,186.09,185.94,32.47738692]
[1736452899646,32.47738692,186.06,185.9,32.47738692]
[1736452899841,32.47738692,186.06,185.96,2.6893]
[1736452899842,2.6886,186.02,185.96,2.6893]
[1736452900142,32.47738692,186.03,185.89,3.0426]
[1736452900538,32.47738692,186.03,185.76,32.47738692]
[1736452900539,32.47738692,186.0,185.84,32.47738692]
[1736452900738,32.47738692,185.97,185.82,3.1174]
[1736452901142,2.6899,185.93,185.87,2.6907]
[1736452901341,32.47738692,185.94,185.8,1.6164]
[1736452901645,32.47738692,185.91,185.75,43.65738692]
[1736452901847,2.6909,185.86,185.8,2.6916]
[1736452902039,32.47738692,185.91,185.75,32.47738692]
[1736452902241,2.6905,185.89,185.82,2.6914]
[1736452902841,32.47738692,185.94,185.78,32.47738692]
[1736452903440,2.6907,185.88,185.81,2.6914]
[1736452903643,32.47738692,185.91,185.78,32.47738692]
[1736452904047,2.6904,185.89,185.83,2.6911]
[1736452904248,11.08,186.0,185.72,32.47738692]
[1736452904249,32.47738692,185.88,185.72,32.47738692]
[1736452904441,32.47738692,185.85,185.69,37.26318692]
[1736452904642,2.691,185.85,185.76,2.6922]
[1736452904946,2.691,185.85,185.72,32.47738692]
[1736452905144,2.6911,185.84,185.78,2.692]
[1736452905544,32.47738692,185.85,185.69,37.26318692]
[1736452905850,32.47738692,185.82,185.69,3.2404]
[1736452906247,32.47738692,185.85,185.69,35.71778692]
[1736452906445,43.45738692,185.88,185.72,32.47738692]
[1736452907440,32.47738692,185.85,185.7,1.86251]
[1736452907844,32.47738692,185.82,185.7,0.23801]
[1736452908940,32.47738692,185.85,185.7,0.23801]
[1736452909441,32.47738692,185.85,185.7,1.73271]
[1736452909848,35.16848692,185.85,185.78,2.6918]
[1736452910051,2.6911,185.85,185.72,32.47738692]
[1736452910747,43.29738692,185.91,185.75,32.47738692]
[1736452910947,43.29738692,185.91,185.81,2.6914]
[1736452911452,43.29738692,185.91,185.75,32.47738692]
[1736452911453,2.6905,185.88,185.75,32.47738692]
[1736452911650,2.6905,185.88,185.82,2.6914]
[1736452911851,43.29738692,185.91,185.75,32.47738692]
[1736452912353,32.47738692,185.88,185.78,2.692]
[1736452912550,32.47738692,185.85,185.7,1.73271]
[1736452912851,32.47738692,185.85,185.7,0.23801]
[1736452913752,2.6914,185.82,185.76,2.6923]
[1736452914149,32.47738692,185.85,185.76,2.6923]
[1736452914656,32.47738692,185.85,185.7,0.23801]
[1736452914951,32.47738692,185.88,185.7,0.23801]
[1736452915346,2.6913,185.83,185.7,0.23801]
[1736452915546,32.47738692,185.88,185.7,0.23801]
[1736452915950,10.82,185.91,185.7,0.23801]
[1736452915951,32.47738692,185.85,185.7,0.23801]
[1736452916151,32.47738692,185.82,185.7,0.23801]
[1736452917352,26.97,185.91,185.7,0.23801]
[1736452917353,32.47738692,185.79,185.7,0.23801]
[1736452917650,2.6924,185.76,185.7,2.93111]
[1736452917853,2.6924,185.76,185.7,0.23801]
[1736452918155,32.47738692,185.79,185.71,2.693]
[1736452918355,2.6924,185.75,185.7,0.23801]
[1736452918657,32.47738692,185.76,185.7,0.23801]
[1736452919358,2.6923,185.76,185.71,2.693]
[1736452919752,32.47738692,185.82,185.67,32.47738692]
[1736452919957,13.2314,185.83,185.7,32.47738692]
[1736452920151,10.54,185.83,185.7,32.47738692]
[1736452920352,2.6918,185.8,185.74,2.6925]
[1736452920559,32.47738692,185.82,185.68,1.5071]
[1736452921061,32.47738692,185.82,185.67,32.47738692]
[1736452921656,10.54,185.83,185.62,1.5071]
[1736452921657,32.47738692,185.76,185.62,1.5071]
[1736452921960,32.47738692,185.73,185.59,3.1288]
[1736452922162,2.6931,185.71,185.65,2.6937]
[1736452922362,32.47738692,185.76,185.61,32.47738692]
[1736452922561,2.6925,185.75,185.65,2.6938]
[1736452922763,2.6925,185.75,185.61,32.47738692]
[1736452922960,32.47738692,185.76,185.61,32.47738692]
[1736452923656,2.6934,185.68,185.6,0.28276]
[1736452923865,32.47738692,185.73,185.6,0.28276]
[1736452924159,32.47738692,185.76,185.61,32.47738692]
[1736452924355,32.47738692,185.79,185.64,32.47738692]
[1736452924559,32.47738692,185.82,185.67,32.47738692]
[1736452924763,32.47738692,185.82,185.73,2.6927]
[1736452925061,32.47738692,185.82,185.67,32.47738692]
[1736452925261,32.47738692,185.82,185.68,1.5051]
[1736452925763,32.47738692,185.82,185.69,1.57]
[1736452925963,32.47738692,185.85,185.69,1.57]
[1736452926163,117.09451362,185.91,185.76,32.47738692]
[1736452926364,32.47738692,185.91,185.76,32.47738692]
[1736452926863,32.47738692,185.91,185.73,32.47738692]
[1736452927063,32.47738692,185.91,185.76,32.47738692]
[1736452927263,32.47738692,185.94,185.77,1.5051]
[1736452927562,32.47738692,185.9,185.77,1.5051]
[1736452927759,32.47738692,185.87,185.7,34.02418692]
[1736452927960,32.47738692,185.87,185.71,1.6529]
[1736452929060,10.36,185.93,185.71,1.6529]
[1736452929267,2.6918,185.8,185.75,2.6923]
[1736452929462,32.47738692,185.84,185.71,1.6529]
[1736452929866,2.6914,185.82,185.71,1.6529]
[1736452930463,32.47738692,185.84,185.71,1.6529]
[1736452930464,2.6916,185.81,185.71,1.6529]
[1736452930663,32.47738692,185.81,185.69,1.57]
[1736452931561,2.6921,185.77,185.73,2.6926]
[1736452931761,32.47738692,185.78,185.64,32.47738692]
[1736452932163,32.47738692,185.78,185.63,1.4935]
[1736452932762,2.6926,185.74,185.69,2.6931]
[1736452932962,84.6171267,185.87,185.64,32.47738692]
[1736452933158,84.6171267,185.87,185.71,32.47738692]
[1736452933363,117.09451362,185.87,185.71,32.47738692]
[1736452933564,2.6914,185.83,185.71,32.47738692]
[1736452933862,32.47738692,185.87,185.71,32.47738692]
[1736452934059,2.6911,185.84,185.78,2.6919]
[1736452934260,2.6911,185.84,185.72,1.5313]
[1736452934463,32.47738692,185.9,185.74,32.47738692]
[1736452934664,2.6908,185.86,185.81,2.6914]
[1736452934963,2.6908,185.86,185.74,32.47738692]
[1736452935266,2.6908,185.86,185.81,2.6915]
[1736452935465,32.47738692,185.87,185.73,1.5085]
[1736452936170,2.691,185.85,185.8,2.6917]
[1736452936367,2.691,185.85,185.73,1.5085]
[1736452936568,84.6171267,185.91,185.74,32.47738692]
[1736452936761,84.6171267,185.91,185.73,1.5085]
[1736452936762,84.6171267,185.91,185.77,32.47738692]
[1736452937367,84.6171267,185.91,185.8,32.47738692]
[1736452937968,84.6171267,185.95,185.81,1.4982]
[1736452938463,32.47738692,185.94,185.81,1.4982]
[1736452938664,32.47738692,185.91,185.76,32.47738692]
[1736452938869,32.47738692,185.88,185.74,1.4982]
[1736452939370,32.47738692,185.85,185.73,1.5085]
[1736452939568,2.6915,185.81,185.73,1.5085]
[1736452939770,32.47738692,185.85,185.73,1.5085]
[1736452940970,117.09451362,185.88,185.73,33.98588692]
[1736452941574,2.6911,185.84,185.79,2.6918]
[1736452941873,2.6911,185.84,185.73,33.98588692]
[1736452941874,84.6171267,185.89,185.81,2.6914]
[1736452942174,84.6171267,185.89,185.76,32.47738692]
[1736452942374,117.09451362,185.91,185.76,32.47738692]
[1736452942770,84.6171267,185.91,185.76,32.47738692]
[1736452943175,84.6171267,185.92,185.76,32.47738692]
[1736452943373,84.6171267,185.92,185.77,32.47738692]
[1736452943568,2.6907,185.88,185.82,2.6914]
[1736452943766,32.47738692,185.91,185.82,2.6914]
[1736452943976,32.47738692,185.88,185.73,1.5085]
[1736452944275,32.47738692,185.85,185.73,1.5085]
[1736452944664,2.6917,185.81,185.76,2.6922]
[1736452944876,32.47738692,185.85,185.76,2.6922]
[1736452945071,32.47738692,185.85,185.73,1.5085]
[1736452945269,42.35738692,185.88,185.74,32.47738692]
[1736452945466,126.97451362,185.88,185.74,32.47738692]
[1736452946069,9.88,185.88,185.74,32.47738692]
[1736452946473,8.28982845,185.9,185.77,32.47738692]
[1736452946678,8.28982845,185.9,185.83,32.47738692]
[1736452946875,8.28982845,185.9,185.89,2.6904]
[1736452947170,84.6171267,185.93,185.89,32.47738692]
[1736452947372,67.3676267,185.93,185.92,35.16728692]
[1736452947570,14.80725515,185.93,185.92,35.16728692]
[1736452947768,169.87889282,185.95,185.92,32.47738692]
[1736452947972,144.28520107,186.05,186.0,2.6887]
[1736452948171,144.28520107,186.05,185.99,32.47738692]
[1736452948677,144.28520107,186.05,186.0,2.6887]
[1736452948876,1.6479,186.09,185.96,32.47738692]
[1736452949678,2.6877,186.08,186.02,7.43093965]
[1736452949878,1.5686,186.08,186.02,7.43093965]
[1736452950179,2.6882,186.05,186.01,7.43093965]
[1736452950380,1.5686,186.08,186.01,7.43093965]
[1736452950878,32.47738692,186.06,185.99,7.43093965]
[1736452951075,32.47738692,186.02,185.98,17.3384586]
[1736452951273,2.6888,186.0,185.98,17.3384586]
[1736452951570,2.6888,186.0,185.93,58.07279374]
[1736452951776,32.47738692,186.02,185.93,58.07279374]
[1736452952079,32.47738692,185.96,185.93,24.24139374]
[1736452952279,2.69,185.92,185.88,87.10919062]
[1736452952481,32.47738692,185.93,185.88,87.10919062]
[1736452953076,32.47738692,185.93,185.8,88.74049062]
[1736452953276,2.6904,185.89,185.82,2.6914]
[1736452953475,32.47738692,185.96,185.8,88.74049062]
[1736452953878,32.47738692,185.96,185.84,2.6911]
[1736452954086,32.47738692,185.96,185.8,88.74049062]
[1736452954478,32.47738692,185.96,185.8,1.6313]
[1736452954782,32.47738692,186.02,185.85,32.47738692]
[1736452954988,9.68,186.04,185.88,32.47738692]
[1736452955183,32.47738692,186.05,185.91,32.47738692]
[1736452955383,42.07738692,186.12,185.94,32.47738692]
[1736452956280,42.07738692,186.12,185.95,5.36203536]
[1736452956681,2.6878,186.07,186.01,2.6886]
[1736452957078,42.07738692,186.12,185.97,32.47738692]
[1736452957277,42.07738692,186.12,185.96,5.36203536]
[1736452957278,32.47738692,186.15,186.0,32.47738692]
[1736452957488,32.47738692,186.15,186.01,3.0932]
[1736452957784,32.47738692,186.12,186.01,3.0932]
[1736452957987,32.47738692,186.09,185.95,24.13754146]
[1736452958189,32.47738692,186.06,185.95,21.44814146]
[1736452958780,32.47738692,186.06,185.91,64.6476054]
[1736452958979,32.47738692,186.09,185.94,32.47738692]
[1736452959183,32.47738692,186.09,185.93,1.4911]
[1736452959791,2.6883,186.04,185.98,2.6889]
[1736452960091,32.47738692,186.12,185.97,32.47738692]
[1736452960294,116.47738692,186.18,186.0,32.47738692]
[1736452960494,32.47738692,186.18,186.01,1.6286]
[1736452960996,2.6867,186.15,186.01,1.6286]
[1736452961183,32.47738692,186.18,186.01,1.6286]
[1736452961584,32.47738692,186.14,186.01,1.6286]
[1736452961889,32.47738692,186.11,186.01,1.6286]
[1736452962192,32.47738692,186.11,185.96,142.29315493]
[1736452962588,32.47738692,186.11,185.97,32.47738692]
[1736452962890,32.47738692,186.11,185.97,37.81593187]
[1736452963089,32.47738692,186.14,186.0,32.47738692]
[1736452963288,32.47738692,186.17,186.0,32.47738692]
[1736452963888,32.47738692,186.14,186.01,5.33854495]
[1736452964089,32.47738692,186.11,186.01,5.33854495]
[1736452964590,32.47738692,186.11,185.97,130.00281526]
[1736452964795,32.47738692,186.08,185.97,130.00281526]
[1736452964988,32.47738692,186.05,185.97,130.00281526]
[1736452965299,32.47738692,186.02,185.97,130.00281526]
[1736452965889,2.6886,186.01,185.96,2.6894]
[1736452966687,32.47738692,186.05,185.93,1.4911]
[1736452966885,32.47738692,186.08,185.93,1.4911]
[1736452967086,32.47738692,186.11,185.94,32.47738692]
[1736452967491,32.47738692,186.14,185.97,32.47738692]
[1736452967686,32.47738692,186.14,185.98,1.541]
[1736452968093,32.47738692,186.14,186.0,32.47738692]
[1736452968388,32.47738692,186.17,186.0,32.47738692]
[1736452968596,2.6873,186.11,186.05,2.6879]
[1736452968898,32.47738692,186.1,186.01,58.73382517]
[1736452969096,2.6885,186.03,186.01,58.73382517]
[1736452969399,32.47738692,186.07,186.01,58.73382517]
[1736452969793,32.47738692,186.07,185.95,87.10919062]
[1736452969989,32.47738692,186.04,185.95,87.10919062]
[1736452970189,2.6885,186.03,185.98,2.689]
[1736452970497,32.47738692,186.04,185.96,87.10919062]
[1736452970896,2.6888,186.01,185.97,2.6892]
[1736452971391,2.6885,186.03,185.93,1.4911]
[1736452971699,32.47738692,186.04,185.93,1.4911]
[1736452971893,32.47738692,186.01,185.94,119.18633681]
[1736452972096,32.47738692,185.98,185.94,188.68682021]
[1736452972295,32.47738692,185.95,185.94,188.68682021]
[1736452972495,35.16698692,185.95,185.94,188.68682021]
[1736452972991,35.16698692,185.95,185.94,180.61212021]
[1736452973198,32.47738692,185.95,185.9,59.11094828]
[1736452973398,2.6901,185.91,185.9,59.11094828]
[1736452973694,32.47738692,185.95,185.89,61.43897062]
[1736452973695,32.47738692,185.95,185.89,0.19128]
[1736452973893,32.47738692,185.91,185.82,59.11094828]
[1736452974101,32.47738692,185.88,185.82,59.11094828]
[1736452974294,2.6909,185.86,185.82,59.11094828]
[1736452974490,32.47738692,185.88,185.82,59.11094828]
[1736452974795,32.47738692,185.88,185.78,59.11094828]
[1736452975899,35.16788692,185.88,185.81,2.6915]
[1736452976499,2.6909,185.86,185.79,2.6917]
[1736452976697,32.47738692,185.88,185.74,4.6664]
[1736452977195,2.6907,185.87,185.81,2.6915]
[1736452977402,32.47738692,185.91,185.76,32.47738692]
[1736452977600,32.47738692,185.94,185.76,32.47738692]
[1736452977791,2.6902,185.91,185.76,32.47738692]
[1736452978099,32.47738692,185.94,185.76,32.47738692]
[1736452978299,32.47738692,185.94,185.77,5.08422597]
[1736452978496,2.69,185.92,185.86,2.6907]
[1736452978697,32.47738692,185.94,185.77,5.08422597]
[1736452979401,32.47738692,185.94,185.78,25.42124551]
[1736452979600,2.6902,185.91,185.85,2.6908]
[1736452980701,9.06,185.96,185.82,32.47738692]
[1736452980905,9.06,185.96,185.83,1.5659]
[1736452981206,2.6901,185.92,185.86,2.6908]